bitfinex-derivatives/quotes_BTCF0:USTF0_20210409
["timestamp","ask_amount","ask_price","bid_price","bid_amount"]
[1617969225965,0.42784598,58601.0,58599.0,0.01522205]
[1617969226165,0.42786788,58602.0,58600.0,0.10725655]
[1617969226364,0.42786788,58602.0,58600.0,0.37725655]
[1617969226764,0.42786788,58602.0,58601.0,0.01522209]
[1617969227164,0.42786788,58602.0,58601.0,0.28522209]
[1617969227364,0.77799969,58602.0,58601.0,0.28522209]
[1617969229366,0.75770315,58602.0,58601.0,0.28522209]
[1617969230807,0.75770315,58602.0,58601.0,0.39932209]
[1617969231886,0.35013181,58602.0,58601.0,0.39932209]
[1617969233669,0.35013181,58602.0,58601.0,1.39932209]
[1617969235473,0.35029012,58604.0,58601.0,1.39932209]
[1617969235973,0.35029012,58604.0,58601.0,0.39932209]
[1617969236172,0.35029012,58604.0,58602.0,0.0152207]
[1617969236374,0.35029012,58604.0,58603.0,1.0]
[1617969236580,0.35039299,58605.0,58603.0,0.27]
[1617969236976,0.20466443,58604.0,58603.0,0.28522072]
[1617969237376,0.35039299,58605.0,58602.0,0.27]
[1617969237576,0.35039299,58605.0,58603.0,1.0]
[1617969237777,0.35039299,58605.0,58604.0,1.0]
[1617969237977,0.00983392,58606.0,58604.0,1.0]
[1617969238178,0.00983392,58606.0,58604.0,0.28521946]
[1617969238377,0.20465192,58627.0,58604.0,0.28521946]
[1617969238378,0.00983176,58605.0,58604.0,0.28521946]
[1617969238677,0.00982945,58606.0,58604.0,0.27]
[1617969239179,0.00983599,58609.0,58605.0,0.2]
[1617969239377,0.00983599,58609.0,58605.0,1.2]
[1617969239578,3.4383,58606.0,58605.0,1.27]
[1617969239778,3.4383,58606.0,58605.0,0.27]
[1617969239988,3.4383,58606.0,58605.0,1.27]
[1617969240177,3.4383,58606.0,58605.0,1.0]
[1617969240382,3.4383,58606.0,58605.0,1.01521887]
[1617969240579,0.00983529,58609.0,58605.0,1.28521887]
[1617969240779,3.1555,58610.0,58605.0,0.28521887]
[1617969241180,0.00983878,58609.0,58608.0,1.0]
[1617969241478,0.00983878,58609.0,58607.0,1.0]
[1617969241878,0.00983878,58609.0,58608.0,0.01521903]
[1617969242080,3.44783853,58610.0,58608.0,0.01521903]
[1617969242278,3.44783853,58610.0,58609.0,0.10725655]
[1617969242479,0.35073836,58611.0,58609.0,0.10725655]
[1617969242688,0.35073836,58611.0,58609.0,0.37725655]
[1617969242888,0.29254698,58610.0,58609.0,0.37725655]
[1617969243280,0.29254698,58610.0,58609.0,0.39247568]
[1617969245182,0.29254698,58610.0,58609.0,1.39247568]
[1617969245514,0.00985789,58611.0,58609.0,1.39247568]
[1617969245913,0.00985789,58611.0,58610.0,0.01521915]
[1617969246097,0.00985789,58611.0,58610.0,1.01521915]
[1617969246306,0.00985789,58611.0,58610.0,1.28521915]
[1617969246516,0.29290633,58612.0,58610.0,1.28521915]
[1617969246785,0.29290633,58612.0,58611.0,1.0]
[1617969247083,0.35088128,58614.0,58611.0,1.01521879]
[1617969247284,0.35088128,58614.0,58611.0,1.28521879]
[1617969247485,0.00984676,58612.0,58611.0,0.28521879]
[1617969247686,0.00984676,58612.0,58611.0,0.27]
[1617969248093,0.00984676,58612.0,58611.0,4.45591863]
[1617969248295,0.00984846,58613.0,58611.0,4.45591863]
[1617969248486,0.00984846,58613.0,58611.0,4.72591863]
[1617969248686,0.00984846,58613.0,58612.0,1.0]
[1617969248985,0.00984846,58613.0,58612.0,1.28521857]
[1617969249586,0.28218316,58614.0,58612.0,1.28521857]
[1617969249889,0.28218316,58614.0,58613.0,1.0]
[1617969250287,0.28218316,58614.0,58613.0,1.27]
[1617969250589,0.28218316,58614.0,58613.0,1.28521848]
[1617969250790,0.35113182,58617.0,58613.0,1.28521848]
[1617969251289,0.35113182,58617.0,58616.0,1.0]
[1617969251489,0.35113182,58617.0,58616.0,1.11794]
[1617969251796,0.35152956,58618.0,58616.0,1.40315836]
[1617969252092,0.35152956,58618.0,58616.0,0.40315836]
[1617969252292,0.35152956,58618.0,58617.0,0.10725655]
[1617969252491,0.35152956,58618.0,58617.0,0.12247441]
[1617969252696,0.3516005,58619.0,58617.0,1.39247441]
[1617969252891,0.3516005,58619.0,58618.0,1.0]
[1617969253292,0.3516005,58619.0,58618.0,1.01521793]
[1617969253493,0.68353432,58647.0,58618.0,1.01521793]
[1617969253494,0.35176877,58621.0,58618.0,4.95291793]
[1617969253693,0.35176877,58621.0,58618.0,4.9377]
[1617969253895,0.48852974,58632.0,58618.0,4.9377]
[1617969253896,0.35181201,58622.0,58618.0,3.9377]
[1617969254095,0.35181201,58622.0,58620.0,1.0]
[1617969254398,0.35187953,58623.0,58621.0,0.01521724]
[1617969254595,0.35187953,58623.0,58621.0,1.28521724]
[1617969254794,0.35187953,58623.0,58620.0,0.27]
[1617969255095,0.35187953,58623.0,58622.0,0.28521728]
[1617969255295,0.35192629,58624.0,58622.0,0.28521728]
[1617969255511,3.3503,58623.0,58622.0,0.01521728]
[1617969255922,3.3503,58623.0,58620.0,0.01521759]
[1617969255923,3.70219525,58623.0,58620.0,0.01521759]
[1617969256095,3.70219525,58623.0,58622.0,0.27]
[1617969256297,3.90608844,58623.0,58618.0,0.28521766]
[1617969256597,0.48253363,58625.0,58621.0,0.27]
[1617969256796,0.35139363,58625.0,58622.0,1.0]
[1617969256999,0.35139363,58625.0,58622.0,3.4618]
[1617969257196,0.35139363,58625.0,58623.0,0.27]
[1617969257399,0.35139363,58625.0,58624.0,1.0]
[1617969257644,0.35147969,58626.0,58624.0,1.0]
[1617969257821,0.35147969,58626.0,58624.0,1.27]
[1617969258031,0.35147969,58626.0,58624.0,0.27]
[1617969258216,0.35147969,58626.0,58625.0,1.01521706]
[1617969258438,0.20463683,58649.0,58625.0,1.01521706]
[1617969258439,0.35175811,58629.0,58625.0,1.12247361]
[1617969258616,0.35175811,58629.0,58626.0,0.2]
[1617969258998,0.35175811,58629.0,58627.0,0.28521699]
[1617969259355,4.1359,58686.0,58627.0,0.28521699]
[1617969259356,0.35202584,58631.0,58628.0,1.0]
[1617969259516,0.35202584,58631.0,58628.0,1.01521661]
[1617969259720,0.35202584,58631.0,58628.0,0.28521661]
[1617969259933,0.35202584,58631.0,58629.0,0.01521665]
[1617969260101,0.35202584,58631.0,58630.0,1.0]
[1617969260301,0.35206198,58632.0,58630.0,1.27]
[1617969260601,0.35206198,58632.0,58630.0,1.28521607]
[1617969260803,0.35210852,58633.0,58630.0,0.28521607]
[1617969261002,0.35210852,58633.0,58632.0,3.1974]
[1617969261202,0.35226442,58635.0,58632.0,3.1974]
[1617969261401,0.35226442,58635.0,58632.0,4.4674]
[1617969261602,0.35226442,58635.0,58634.0,1.0]
[1617969262008,0.35226442,58635.0,58634.0,1.27]
[1617969262405,0.35226442,58635.0,58634.0,1.39247197]
[1617969262605,0.35226333,58636.0,58634.0,1.39247197]
[1617969262804,0.35226333,58636.0,58634.0,1.39247189]
[1617969263005,0.35226333,58636.0,58634.0,0.39247189]
[1617969263205,0.35226333,58636.0,58635.0,1.0]
[1617969263405,0.35226333,58636.0,58635.0,1.1448852]
[1617969263604,0.35226333,58636.0,58635.0,1.4148852]
[1617969264306,0.43053815,58641.0,58635.0,1.4148852]
[1617969264810,0.35294239,58636.0,58635.0,1.39967]
[1617969265208,0.35294239,58636.0,58635.0,0.41488518]
[1617969265406,0.35294239,58636.0,58635.0,1.41488518]
[1617969268511,0.35268179,58639.0,58635.0,1.41488518]
[1617969269112,0.35268179,58639.0,58636.0,1.01521532]
[1617969269613,0.35268179,58639.0,58638.0,1.0]
[1617969269888,0.35268179,58639.0,58638.0,4.558]
[1617969270013,0.33239557,58639.0,58638.0,4.558]
[1617969270341,0.43103376,58644.0,58638.0,4.558]
[1617969270342,0.43141514,58649.0,58638.0,4.84321367]
[1617969270613,0.43141514,58649.0,58639.0,0.2]
[1617969270947,0.43196748,58655.0,58643.0,1.0]
[1617969271198,3.83456748,58655.0,58651.0,1.0]
[1617969271341,3.83456748,58655.0,58651.0,0.12317]
[1617969271342,0.43188609,58653.0,58651.0,0.12317]
[1617969271721,0.43188609,58653.0,58652.0,0.28521305]
[1617969272034,0.28608208,58654.0,58652.0,0.28521305]
[1617969272456,0.28608208,58654.0,58653.0,0.10725655]
[1617969272650,0.28608208,58654.0,58653.0,0.12246894]
[1617969272847,0.28608208,58654.0,58653.0,0.39246894]
[1617969273093,1.21143519,58654.0,58653.0,0.39246894]
[1617969273979,1.21143519,58654.0,58653.0,0.39145473]
[1617969275022,0.92535311,58654.0,58653.0,0.39145473]
[1617969275225,0.10725655,58658.0,58653.0,0.39145473]
[1617969275922,0.10725655,58658.0,58654.0,0.01521218]
[1617969276323,0.10725655,58658.0,58655.0,0.27]
[1617969277023,0.92565065,58656.0,58655.0,0.27]
[1617969277426,0.92565065,58656.0,58655.0,0.28521217]
[1617969277626,0.92565065,58656.0,58655.0,0.01521217]
[1617969278169,1.02985065,58656.0,58655.0,0.28521217]
[1617969278929,1.23704658,58656.0,58655.0,0.28521217]
[1617969280029,1.53222826,58656.0,58655.0,0.28521217]
[1617969280328,4.95532826,58656.0,58655.0,0.28521217]
[1617969280530,7.45532826,58656.0,58655.0,0.28521217]
[1617969280731,7.45532826,58656.0,58655.0,0.01521217]
[1617969280930,5.95532826,58656.0,58655.0,0.01521217]
[1617969281202,7.87743407,58656.0,58648.0,0.01521452]
[1617969281556,1.21873138,58649.0,58648.0,0.01521452]
[1617969281832,2.21873138,58649.0,58648.0,0.01521452]
[1617969282032,2.21873138,58649.0,58648.0,0.28521452]
[1617969282331,5.76983138,58649.0,58648.0,0.28521452]
[1617969282531,6.08406141,58649.0,58648.0,0.28521452]
[1617969282779,5.08406141,58649.0,58648.0,0.28521452]
[1617969282972,5.7988093,58649.0,58648.0,0.28521452]
[1617969283368,5.37693321,58649.0,58648.0,0.28521452]
[1617969284234,5.37693321,58649.0,58648.0,0.28420024]
[1617969286533,6.37693321,58649.0,58648.0,0.28420024]
[1617969286735,6.79964747,58649.0,58648.0,0.28420024]
[1617969287134,7.35093817,58649.0,58648.0,0.28420024]
[1617969287534,6.4270881,58649.0,58648.0,0.28420024]
[1617969287735,6.6270881,58649.0,58648.0,0.28420024]
[1617969287935,6.4270881,58649.0,58648.0,0.28420024]
[1617969288136,6.00437384,58649.0,58648.0,0.28420024]
[1617969288336,5.00437384,58649.0,58648.0,0.28420024]
[1617969288538,4.45308314,58649.0,58648.0,0.28420024]
[1617969289236,4.57495314,58649.0,58648.0,0.28420024]
[1617969289439,5.57495314,58649.0,58648.0,0.28420024]
[1617969290038,6.12689403,58649.0,58648.0,0.28420024]
[1617969290336,6.10660697,58649.0,58648.0,0.28420024]
[1617969292038,6.10660697,58649.0,58648.0,0.27]
[1617969292438,6.10660697,58649.0,58648.0,0.28521545]
[1617969293975,5.10660697,58649.0,58648.0,0.28521545]
[1617969294240,5.10660697,58649.0,58648.0,0.28420109]
[1617969294443,6.10660697,58649.0,58648.0,0.28420109]
[1617969294742,5.10660697,58649.0,58648.0,0.28420109]
[1617969295548,5.34160912,58649.0,58648.0,0.28420109]
[1617969295751,1.79050912,58649.0,58648.0,0.28420109]
[1617969296051,1.79050912,58649.0,58648.0,3.69682109]
[1617969296518,0.73872295,58649.0,58648.0,3.69682109]
[1617969296992,0.94192859,58649.0,58648.0,3.69682109]
[1617969297446,0.73872295,58649.0,58648.0,3.69682109]
[1617969298847,0.73872295,58649.0,58648.0,0.40752109]
[1617969299048,3.89322295,58649.0,58648.0,0.40752109]
[1617969299245,3.89322295,58649.0,58648.0,0.28420109]
[1617969299453,4.38611528,58649.0,58648.0,0.28420109]
[1617969299748,5.38611528,58649.0,58648.0,0.28420109]
[1617969300347,4.38611528,58649.0,58648.0,0.28420109]
[1617969301653,1.23161528,58649.0,58648.0,0.28420109]
[1617969302050,1.7866239,58649.0,58648.0,0.28420109]
[1617969302249,1.9866239,58649.0,58648.0,0.28420109]
[1617969302451,1.49373157,58649.0,58648.0,0.28420109]
[1617969302751,1.29373157,58649.0,58648.0,0.28420109]
[1617969303050,2.29373157,58649.0,58648.0,0.28420109]
[1617969303251,5.20783157,58649.0,58648.0,0.28420109]
[1617969303451,4.20783157,58649.0,58648.0,0.28420109]
[1617969303851,4.70080295,58649.0,58648.0,0.28420109]
[1617969304652,4.70080295,58649.0,58648.0,0.28318683]
[1617969304852,1.78670295,58649.0,58648.0,0.28318683]
[1617969305053,1.78670295,58649.0,58648.0,3.89578683]
[1617969305454,1.29373157,58649.0,58648.0,3.89578683]
[1617969305854,0.73872295,58649.0,58648.0,3.89578683]
[1617969306256,1.29436182,58649.0,58648.0,3.89578683]
[1617969306765,0.73872295,58649.0,58648.0,3.89578683]
[1617969308357,1.29456317,58649.0,58648.0,3.89578683]
[1617969309361,1.29456317,58649.0,58648.0,0.28318683]
[1617969309860,3.78776317,58649.0,58648.0,0.28318683]
[1617969310660,4.26077415,58649.0,58648.0,0.28318683]
[1617969312168,5.96077415,58649.0,58648.0,0.01521545]
[1617969312363,6.96077415,58649.0,58648.0,0.01521545]
[1617969312765,8.07231297,58649.0,58648.0,0.01521545]
[1617969312964,8.07231297,58649.0,58626.0,0.01521752]
[1617969313365,8.94288259,58649.0,58626.0,0.01521752]
[1617969313766,1.28598999,58627.0,58626.0,0.01521752]
[1617969313966,1.40742999,58627.0,58626.0,0.01521752]
[1617969314568,4.79000802,58627.0,58626.0,0.01521752]
[1617969315067,5.06997936,58627.0,58626.0,0.01521752]
[1617969315307,7.76997936,58627.0,58600.0,0.4442972]
[1617969315498,0.2,58626.0,58599.0,0.44431377]
[1617969315768,3.1598,58601.0,58599.0,0.44431377]
[1617969316038,3.1598,58601.0,58588.0,0.44441903]
[1617969316039,3.3255,58600.0,58588.0,0.44441903]
[1617969316469,0.20422957,58599.0,58583.0,0.50534933]
[1617969316668,0.20422957,58599.0,58596.0,0.10725655]
[1617969316870,0.43272674,58598.0,58596.0,0.10725655]
[1617969317270,0.20422957,58599.0,58596.0,0.10725655]
[1617969317271,0.43237052,58597.0,58596.0,0.10725655]
[1617969317672,0.20402988,58597.0,58596.0,0.10725655]
[1617969318183,3.30782988,58597.0,58596.0,0.10725655]
[1617969318702,3.21105655,58597.0,58596.0,0.10725655]
[1617969319109,3.41508556,58597.0,58596.0,0.10725655]
[1617969319971,1.31128556,58597.0,58596.0,0.10725655]
[1617969320169,0.31128556,58597.0,58596.0,0.10725655]
[1617969320571,0.31128556,58597.0,58596.0,0.12247961]
[1617969320773,3.51118556,58597.0,58596.0,0.12247961]
[1617969321474,4.9436352,58597.0,58596.0,0.12247961]
[1617969322177,3.9436352,58597.0,58596.0,0.12247961]
[1617969324074,3.51118556,58597.0,58596.0,0.10725655]
[1617969324574,3.51118556,58597.0,58596.0,0.12248197]
[1617969326374,0.31128556,58597.0,58596.0,0.12248197]
[1617969326574,2.57465655,58597.0,58596.0,0.12248197]
[1617969331003,2.55435536,58597.0,58596.0,0.12248197]
[1617969336282,0.08695536,58597.0,58596.0,0.12248197]
[1617969336483,0.08695536,58597.0,58596.0,3.75778197]
[1617969336683,0.08695536,58597.0,58596.0,4.02778197]
[1617969336882,0.08695536,58597.0,58596.0,5.02778197]
[1617969337083,0.43045733,58610.0,58596.0,5.02778197]
[1617969337486,0.43057004,58612.0,58602.0,1.0]
[1617969337682,0.43057004,58612.0,58602.0,1.11803]
[1617969337882,0.43057004,58612.0,58603.0,0.2852233]
[1617969338183,0.0517,58611.0,58603.0,0.2852233]
[1617969338384,0.24645443,58611.0,58604.0,0.01522326]
[1617969338785,0.43053218,58613.0,58610.0,0.10725655]
[1617969339184,0.43053218,58613.0,58611.0,0.27]
[1617969339383,0.43053218,58613.0,58611.0,0.285223]
[1617969339784,0.35268978,58612.0,58611.0,0.27]
[1617969340187,0.35268978,58612.0,58611.0,0.28522292]
[1617969340687,0.45994633,58612.0,58611.0,0.28522292]
[1617969340888,0.51184633,58612.0,58611.0,0.28522292]
[1617969341090,1.18458437,58612.0,58611.0,0.28522292]
[1617969341891,2.37926623,58612.0,58611.0,0.28522292]
[1617969342090,6.04446623,58612.0,58611.0,0.28522292]
[1617969342692,6.32740883,58612.0,58611.0,0.28522292]
[1617969344194,6.52740883,58612.0,58611.0,0.28522292]
[1617969344694,6.47560883,58612.0,58611.0,0.28522292]
[1617969344997,5.47560883,58612.0,58611.0,0.28522292]
[1617969345494,6.47560883,58612.0,58611.0,0.28522292]
[1617969345817,5.47560883,58612.0,58611.0,0.28522292]
[1617969346004,6.47560883,58612.0,58611.0,0.28522292]
[1617969346268,6.47560883,58612.0,58586.0,3.87338575]
[1617969346269,2.86220883,58612.0,58586.0,0.30198575]
[1617969346477,2.6551,58599.0,58586.0,0.30198575]
[1617969346700,2.6551,58599.0,58582.0,0.10725655]
[1617969346701,0.10725655,58587.0,58582.0,0.10725655]
[1617969346937,0.20374655,58587.0,58582.0,0.10725655]
[1617969350899,0.29235851,58591.0,58582.0,0.10725655]
[1617969351098,0.29235851,58591.0,58586.0,3.1927]
[1617969351300,0.29235851,58591.0,58586.0,4.1927]
[1617969351501,0.35081073,58594.0,58590.0,1.0]
[1617969351712,0.3511856,58600.0,58590.0,1.0]
[1617969351999,0.35143935,58605.0,58593.0,4.0419]
[1617969352214,0.35143935,58605.0,58594.0,1.0]
[1617969352399,0.35143935,58605.0,58595.0,1.0]
[1617969352599,0.35150755,58607.0,58595.0,1.0]
[1617969352801,0.35150755,58607.0,58603.0,0.10725655]
[1617969353101,0.35150755,58607.0,58604.0,0.01522403]
[1617969353300,0.35150755,58607.0,58604.0,0.28522403]
[1617969353602,0.4832,58613.0,58604.0,0.28522403]
[1617969353603,0.35140818,58605.0,58604.0,0.28522403]
[1617969354100,0.4294772,58610.0,58604.0,0.28522403]
[1617969354300,0.35146235,58606.0,58604.0,0.28522403]
[1617969354501,2.6379,58605.0,58604.0,0.28522403]
[1617969354699,2.6379,58605.0,58604.0,0.27]
[1617969355002,3.09660253,58605.0,58604.0,0.28522441]
[1617969355205,3.292101,58605.0,58604.0,0.28522441]
[1617969356332,3.442861,58605.0,58604.0,0.01522441]
[1617969356584,4.642861,58605.0,58604.0,0.01522441]
[1617969356743,4.642861,58605.0,58579.0,0.01522556]
[1617969356906,5.07196525,58605.0,58593.0,0.10725655]
[1617969357303,0.35108906,58599.0,58593.0,0.10725655]
[1617969357506,0.35108906,58599.0,58594.0,0.28522585]
[1617969358002,0.35108906,58599.0,58595.0,0.01522578]
[1617969358205,0.54608721,58599.0,58595.0,0.01522578]
[1617969358406,1.5,58598.0,58595.0,0.01522578]
[1617969358769,1.0,58596.0,58595.0,0.01522578]
[1617969358902,1.0,58596.0,58573.0,0.3619722]
[1617969358903,5.98445655,58596.0,58585.0,0.10725655]
[1617969359175,6.76351036,58596.0,58585.0,0.10725655]
[1617969359404,1.85044424,58587.0,58586.0,0.01522936]
[1617969359603,1.96473424,58587.0,58586.0,0.01522936]
[1617969359806,2.1593673,58587.0,58586.0,0.01522936]
[1617969360003,1.6593673,58587.0,58586.0,0.01522936]
[1617969360205,3.1593673,58587.0,58586.0,0.01522936]
[1617969360404,1.6593673,58587.0,58586.0,0.01522936]
[1617969361009,1.96662385,58587.0,58586.0,0.01522936]
[1617969361205,4.3843392,58587.0,58586.0,0.01522936]
[1617969361404,4.3843392,58587.0,58575.0,0.10725655]
[1617969361705,4.3843392,58587.0,58586.0,0.01523013]
[1617969361706,4.17868291,58587.0,58586.0,0.01523013]
[1617969361905,3.17868291,58587.0,58586.0,0.01523013]
[1617969362308,4.17868291,58587.0,58563.0,0.01523058]
[1617969362527,0.0513,58586.0,58563.0,0.01523058]
[1617969362714,3.2907,58564.0,58563.0,0.01523058]
[1617969363009,3.43426,58564.0,58563.0,0.12248713]
[1617969365953,5.93426,58564.0,58563.0,0.01523058]
[1617969366315,1.14356,58564.0,58563.0,0.01523058]
[1617969366513,6.63138138,58564.0,58563.0,0.01523058]
[1617969366714,1.57068138,58564.0,58563.0,0.01523058]
[1617969367136,1.92025541,58564.0,58563.0,0.01523058]
[1617969367413,3.42025541,58564.0,58563.0,0.01523058]
[1617969367616,1.92025541,58564.0,58563.0,0.01523058]
[1617969367970,0.92025541,58564.0,58563.0,3.10753058]
[1617969368115,0.77669541,58564.0,58563.0,3.10753058]
[1617969368514,0.34957403,58564.0,58563.0,3.10753058]
[1617969369014,0.34957403,58564.0,58563.0,3.21478713]
[1617969369716,0.10725655,58565.0,58563.0,3.19955655]
[1617969369915,0.10725655,58565.0,58563.0,3.21479111]
[1617969370317,0.10725655,58565.0,58564.0,0.01523456]
[1617969370517,1.10725655,58565.0,58564.0,0.01523456]
[1617969370719,1.4574118,58565.0,58564.0,0.01523456]
[1617969371319,0.4574118,58565.0,58564.0,0.01523456]
[1617969371517,0.43709746,58565.0,58564.0,0.01523456]
[1617969372519,0.6424381,58565.0,58564.0,0.01523456]
[1617969373922,0.08694221,58565.0,58564.0,0.01523456]
[1617969374721,0.43772847,58565.0,58564.0,0.01523456]
[1617969375324,0.08694221,58565.0,58564.0,0.01523456]
[1617969375521,0.18136221,58565.0,58564.0,0.01523456]
[1617969375821,1.19118229,58565.0,58564.0,0.01523456]
[1617969376322,6.53899409,58565.0,58564.0,0.01523456]
[1617969376536,6.53899409,58565.0,58546.0,0.2467822]
[1617969376537,3.65829135,58565.0,58546.0,0.2467822]
[1617969376924,1.10725655,58547.0,58546.0,0.2467822]
[1617969377123,1.20498655,58547.0,58546.0,0.2467822]
[1617969377839,2.70498655,58547.0,58546.0,0.2467822]
[1617969380728,3.05358541,58547.0,58546.0,0.2467822]
[1617969381631,3.34403201,58547.0,58546.0,0.2467822]
[1617969381831,3.54403201,58547.0,58525.0,0.30222354]
[1617969382095,3.54403201,58547.0,58546.0,0.01524222]
[1617969382330,6.26276583,58547.0,58526.0,0.01524346]
[1617969382530,2.76976583,58547.0,58526.0,0.01524346]
[1617969382731,2.75251156,58547.0,58522.0,2.5641]
[1617969382931,0.28966875,58527.0,58522.0,2.5641]
[1617969383130,0.28966875,58527.0,58523.0,0.01524293]
[1617969383530,0.00492819,58529.0,58523.0,0.28524293]
[1617969383838,0.00492819,58529.0,58523.0,0.40498293]
[1617969384030,0.28999041,58532.0,58523.0,0.40498293]
[1617969384031,0.00492972,58532.0,58523.0,0.40498293]
[1617969384234,0.00492972,58532.0,58524.0,0.01524109]
[1617969384433,0.00493159,58533.0,58524.0,0.01524109]
[1617969384649,0.00493159,58533.0,58525.0,0.27]
[1617969384833,0.00493431,58536.0,58525.0,0.27]
[1617969385035,0.00493431,58536.0,58532.0,0.10725655]
[1617969385334,0.00493431,58536.0,58533.0,3.64704035]
[1617969385536,0.00493431,58536.0,58533.0,3.91704035]
[1617969385736,0.00493431,58536.0,58534.0,0.01524006]
[1617969385938,0.00493482,58538.0,58534.0,0.01524006]
[1617969386137,0.00493482,58538.0,58535.0,1.27]
[1617969386437,0.00493482,58538.0,58535.0,0.37731]
[1617969386639,0.10725655,58546.0,58536.0,0.01523935]
[1617969387039,0.10725655,58546.0,58545.0,0.10725655]
[1617969387545,0.10725655,58546.0,58545.0,0.39249575]
[1617969390542,1.11217798,58546.0,58545.0,0.39249575]
[1617969390943,0.11700074,58546.0,58545.0,0.39249575]
[1617969391542,0.08693472,58546.0,58545.0,0.39249575]
[1617969391942,0.09667548,58546.0,58545.0,0.39249575]
[1617969392243,0.09185379,58546.0,58545.0,0.39249575]
[1617969393042,0.09667962,58546.0,58545.0,0.39249575]
[1617969393242,1.09667962,58546.0,58545.0,0.39249575]
[1617969393644,0.37637665,58546.0,58545.0,0.39249575]
[1617969393945,0.37637665,58546.0,58545.0,0.12249575]
[1617969394144,3.74197665,58546.0,58545.0,0.12249575]
[1617969394344,4.74197665,58546.0,58545.0,0.12249575]
[1617969394646,6.24197665,58546.0,58545.0,0.12249575]
[1617969395445,4.74197665,58546.0,58545.0,0.12249575]
[1617969395846,0.37637665,58546.0,58545.0,0.12249575]
[1617969396347,0.08693472,58546.0,58545.0,0.12249575]
[1617969396547,1.08693472,58546.0,58545.0,0.12249575]
[1617969396748,0.08693472,58546.0,58545.0,0.12249575]
[1617969396947,0.37660058,58546.0,58545.0,0.12249575]
[1617969397149,0.0966883,58546.0,58545.0,0.12249575]
[1617969397650,0.09185971,58546.0,58545.0,0.12249575]
[1617969398652,0.37719205,58546.0,58545.0,3.58739575]
[1617969398852,0.37719205,58546.0,58545.0,3.85739575]
[1617969399050,0.29025733,58546.0,58545.0,3.84215655]
[1617969399252,0.00977462,58547.0,58545.0,3.84215655]
[1617969399450,0.00977462,58547.0,58545.0,3.85739532]
[1617969399652,0.00493892,58550.0,58545.0,3.85739532]
[1617969399851,0.00493892,58550.0,58546.0,0.01523778]
[1617969400154,0.29062163,58552.0,58546.0,0.01523778]
[1617969400155,0.00494138,58552.0,58546.0,0.01523778]
[1617969400419,0.00494138,58552.0,58547.0,0.27]
[1617969400611,0.00494153,58554.0,58547.0,1.27]
[1617969400951,0.00494153,58554.0,58548.0,0.01523733]
[1617969401160,0.00979078,58558.0,58555.0,3.6629]
[1617969401652,0.29099715,58561.0,58556.0,0.27]
[1617969401851,0.29099715,58561.0,58556.0,0.39740679]
[1617969402153,0.29099715,58561.0,58557.0,0.01523656]
[1617969402353,0.00979122,58559.0,58557.0,0.01523656]
[1617969402552,0.00979122,58559.0,58558.0,0.27]
[1617969402999,0.00979122,58559.0,58558.0,0.28523681]
[1617969403652,3.09609122,58559.0,58558.0,0.28523681]
[1617969403953,3.37717514,58559.0,58558.0,0.28523681]
[1617969404353,4.7260257,58559.0,58558.0,0.28523681]
[1617969404857,5.15210965,58559.0,58558.0,0.28523681]
[1617969405154,5.2593662,58559.0,58558.0,0.28422086]
[1617969405355,4.2593662,58559.0,58558.0,0.28422086]
[1617969406055,3.83328225,58559.0,58558.0,0.28422086]
[1617969406556,4.25933617,58559.0,58558.0,0.28422086]
[1617969406856,5.25933617,58559.0,58558.0,0.28422086]
[1617969407557,4.25933617,58559.0,58558.0,0.28422086]
[1617969408658,3.83328225,58559.0,58558.0,0.28422086]
[1617969410564,4.2609445,58559.0,58558.0,0.28422086]
[1617969411962,5.24062623,58559.0,58558.0,0.28422086]
[1617969412263,4.24062623,58559.0,58558.0,0.28422086]
[1617969416868,5.24062623,58559.0,58558.0,0.28422086]
[1617969417189,4.24062623,58559.0,58558.0,0.28422086]
[1617969417368,1.1746445,58559.0,58558.0,0.28422086]
[1617969417769,2.1746445,58559.0,58558.0,0.28422086]
[1617969417969,5.0664445,58559.0,58558.0,0.28422086]
[1617969418370,5.31025542,58559.0,58558.0,0.28422086]
[1617969418669,6.81025542,58559.0,58558.0,0.01523681]
[1617969418872,7.16456465,58559.0,58558.0,0.01523681]
[1617969419179,7.36456465,58559.0,58558.0,0.01523681]
[1617969419470,7.84972937,58559.0,58554.0,0.01524035]
[1617969419670,7.84972937,58559.0,58558.0,0.0152405]
[1617969419871,6.64972937,58559.0,58558.0,0.0152405]
[1617969420071,7.64972937,58559.0,58526.0,0.01524082]
[1617969420771,0.00494878,58538.0,58527.0,0.27]
[1617969421282,0.0098012,58540.0,58537.0,0.10725655]
[1617969421679,0.35008276,58540.0,58538.0,0.28524026]
[1617969422075,0.64154883,58539.0,58538.0,0.28524026]
[1617969422891,0.64154883,58539.0,58538.0,0.27]
[1617969423174,0.29162194,58539.0,58538.0,0.28523983]
[1617969424086,0.29162194,58539.0,58538.0,3.87943983]
[1617969424479,0.00982236,58539.0,58538.0,3.87943983]
[1617969424978,0.00982236,58539.0,58538.0,1.28523983]
[1617969425178,0.00496158,58541.0,58538.0,0.58839976]
[1617969425381,2.4724,58539.0,58538.0,0.58839976]
[1617969425577,2.4724,58539.0,58538.0,0.27]
[1617969425578,2.76419847,58539.0,58538.0,0.27]
[1617969425980,2.76419847,58539.0,58538.0,0.28524133]
[1617969426583,1.0690917,58539.0,58538.0,0.28524133]
[1617969426983,1.0690917,58539.0,58538.0,3.79074133]
[1617969427381,1.17634825,58539.0,58538.0,3.79074133]
[1617969427593,0.74884669,58539.0,58538.0,3.79074133]
[1617969427998,0.99270922,58539.0,58538.0,3.79074133]
[1617969428881,0.99270922,58539.0,58538.0,0.28524133]
[1617969429085,1.4201343,58539.0,58538.0,0.28524133]
[1617969429382,1.4201343,58539.0,58538.0,0.01524133]
[1617969430585,4.2184343,58539.0,58538.0,0.01524133]
[1617969430987,5.2184343,58539.0,58538.0,0.01524133]
[1617969431186,6.7184343,58539.0,58538.0,0.01524133]
[1617969431388,7.07160722,58539.0,58526.0,0.10725655]
[1617969431588,5.57160722,58539.0,58526.0,0.10725655]
[1617969431787,5.05656201,58539.0,58527.0,0.01524285]
[1617969431986,1.0,58534.0,58527.0,0.01524285]
[1617969432188,0.64023468,58528.0,58527.0,0.28524285]
[1617969433089,2.06676585,58528.0,58527.0,0.28524285]
[1617969433289,2.1740224,58528.0,58527.0,0.28524285]
[1617969433490,1.1740224,58528.0,58527.0,0.28524285]
[1617969433691,1.41793099,58528.0,58527.0,0.28524285]
[1617969434094,0.99139982,58528.0,58527.0,0.28524285]
[1617969435623,0.88414327,58528.0,58527.0,0.28524285]
[1617969435794,0.88414327,58528.0,58527.0,0.01524285]
[1617969435995,4.74186348,58528.0,58527.0,0.01524285]
[1617969436396,5.0949153,58528.0,58527.0,0.01524285]
[1617969436697,4.80389072,58528.0,58527.0,0.01524285]
[1617969436895,6.20910604,58528.0,58527.0,0.01524285]